fUST/lending_fUST_20240919
["ID","MTS","AMOUNT","RATE_DAILY","PERIOD"]
[338566415,1726738246741,-500.0,0.00018082,2]
[338566417,1726738246750,-500.0,0.00018082,2]
[338566419,1726738246762,-628.16,0.00018082,2]
[338566421,1726738246772,-3188.23,0.00018082,2]
[338566423,1726738246782,-500.0,0.00018082,2]
[338566426,1726738246792,-1138.6,0.00018082,2]
[338566433,1726738246801,-987.63,0.00018082,2]
[338566435,1726738246868,-1005.75,0.00018082,2]
[338566438,1726738246878,-500.0,0.00018082,2]
[338566440,1726738246888,-500.0,0.00018082,2]
[338566442,1726738246897,-500.0,0.00018082,2]
[338566444,1726738246908,-500.0,0.00018082,2]
[338566446,1726738246917,-910.36,0.00018082,2]
[338566448,1726738246927,-500.0,0.00018082,2]
[338566450,1726738246936,-700.68,0.00018082,2]
[338566452,1726738246945,-533.89,0.00018082,2]
[338566454,1726738246955,-501.77,0.00018082,2]
[338566456,1726738246966,-1044.36,0.00018082,2]
[338566458,1726738246975,-1734.88,0.00018082,2]
[338566460,1726738246984,-800.09,0.00018082,2]
[338566462,1726738246994,-500.0,0.00018082,2]
[338566464,1726738247003,-500.0,0.00018082,2]
[338566466,1726738247012,-1081.47,0.00018082,2]
[338566468,1726738247021,-1449.9,0.00018082,2]
[338566470,1726738247030,-517.29,0.00018082,2]
[338566471,1726738247039,-500.0,0.00018082,2]
[338566473,1726738247049,-1244.75,0.00018082,2]
[338566476,1726738247058,-1027.3,0.00018082,2]
[338566478,1726738247068,-500.0,0.00018082,2]
[338566480,1726738247078,-151.0,0.00018082,2]
[338566481,1726738247087,-989.35,0.00018082,2]
[338566484,1726738247096,-934.54,0.00018082,2]
[338566486,1726738247106,-151.0,0.00018082,2]
[338566487,1726738247114,-1733.48,0.00018082,2]
[338566489,1726738247124,-500.0,0.00018082,2]
[338566491,1726738247133,-615.15,0.00018082,2]
[338566494,1726738247143,-1137.32,0.00018082,2]
[338566496,1726738247152,-151.0,0.00018082,2]
[338566498,1726738247162,-623.12,0.00018082,2]
[338566500,1726738247172,-500.0,0.00018082,2]
[338566502,1726738247182,-500.0,0.00018082,2]
[338566503,1726738247199,-500.0,0.00018082,2]
[338566505,1726738247208,-500.0,0.00018082,2]
[338566507,1726738247218,-1046.13,0.00018082,2]
[338566509,1726738247228,-2574.66,0.00018082,2]
[338566511,1726738247237,-500.0,0.00018082,2]
[338566513,1726738247249,-591.85,0.00018082,2]
[338566515,1726738247259,-184.202906,0.00018082,2]
[338566517,1726738247268,-184.202906,0.00018082,2]
[338566519,1726738247278,-197.778075,0.00018082,2]
[338566521,1726738247287,-197.778075,0.00018082,2]
[338566523,1726738247296,-586.389828,0.00018082,2]
[338566525,1726738247305,-586.389822,0.00018082,2]
[338566527,1726738247315,-2190.814334,0.00018082,2]
[338566529,1726738247325,-1621.706666,0.00018082,2]
[338566531,1726738247334,-1621.706668,0.00018082,2]
[338566533,1726738247344,-151.0,0.00018082,2]
[338566535,1726738247354,-420.709769,0.00018082,2]
[338566537,1726738247363,-420.709774,0.00018082,2]
[338566539,1726738247373,-332.739636,0.00018082,2]
[338566541,1726738247382,-332.739631,0.00018082,2]
[338566544,1726738247392,-4451.95,0.00018082,2]
[338566546,1726738247402,-657.458498,0.00018082,2]
[338566548,1726738247413,-657.458499,0.00018082,2]
[338566550,1726738247425,-869.76,0.00018082,2]
[338566552,1726738247434,-939.1,0.00018082,2]
[338566554,1726738247444,-500.0,0.00018082,2]
[338566556,1726738247455,-150.112234,0.000182,2]
[338566558,1726738247464,-150.112233,0.000182,2]
[338566560,1726738247474,-1290.87659069,0.0001832,2]
[338566562,1726738247484,-266.63981738,0.00018342,2]
[338566564,1726738247494,-513.72926842,0.00018342,2]
[338566566,1726738247503,-1000.0,0.00018342,2]
[338566568,1726738247512,-1000.0,0.00018342,2]
[338566570,1726738247521,-55433.58991498,0.00018355,2]
[338566605,1726738247848,-169.3967427,0.00018355,2]
[338566646,1726738248245,-548.271387,0.00016976,2]
[338566648,1726738248255,-22694.35334232,0.00018355,2]
[338566650,1726738248267,-9916.88,0.00018355,2]
[338566653,1726738248278,-1572.38,0.00018355,2]
[338566655,1726738248289,-963.67,0.00018355,2]
[338566657,1726738248298,-1295.73,0.00018355,2]
[338566659,1726738248309,-233.08817321,0.00018355,2]
[338566661,1726738248318,-1165.61,0.00018355,2]
[338566663,1726738248327,-532.50545567,0.00018355,2]
[338566665,1726738248337,-1112.29,0.00018355,2]
[338566667,1726738248347,-1479.529653,0.00018355,2]
[338566669,1726738248357,-213.77734259,0.00018355,2]
[338566671,1726738248366,-1479.529653,0.00018355,2]
[338566673,1726738248376,-1725.121576,0.00018355,2]
[338566675,1726738248385,-1725.121576,0.00018355,2]
[338566677,1726738248395,-1004.85,0.00018355,2]
[338566679,1726738248407,-840.39483,0.00018355,2]
[338566681,1726738248417,-1028.619874,0.00018355,2]
[338566682,1726738248426,-840.39483,0.00018355,2]
[338566684,1726738248436,-1028.619874,0.00018355,2]
[338566686,1726738248448,-953.59,0.00018355,2]
[338566688,1726738248457,-345.075833,0.00018355,2]
[338566690,1726738248467,-555.96,0.00018355,2]
[338566692,1726738248478,-345.075833,0.00018355,2]
[338566693,1726738248487,-175.514511,0.00018355,2]
[338566694,1726738248497,-500.0,0.00018355,2]
[338566695,1726738248507,-175.514511,0.00018355,2]
[338566696,1726738248516,-500.0,0.00018355,2]
[338566697,1726738248525,-500.0,0.00018355,2]
[338566698,1726738248536,-482.68959,0.00018355,2]
[338566699,1726738248546,-482.68959,0.00018355,2]
[338566700,1726738248555,-200.66302024,0.00018355,2]
[338566701,1726738248572,-372.5413097,0.00016986,2]
[338566702,1726738248583,-175.7300773,0.00016986,2]
[338566703,1726738248593,-69.31758476,0.00018355,2]
[338566704,1726738248602,-269.980605,0.00018355,2]
[338566705,1726738248612,-500.0,0.00018356,2]
[338566706,1726738248621,-658.79,0.00018356,2]
[338566708,1726738248631,-1051.26,0.00018356,2]
[338566710,1726738248640,-500.0,0.00018356,2]
[338566712,1726738248650,-585.17,0.00018356,2]
[338566714,1726738248661,-500.0,0.00018356,2]
[338566716,1726738248670,-628.16,0.00018356,2]
[338566718,1726738248680,-3188.23,0.00018356,2]
[338566720,1726738248689,-500.0,0.00018356,2]
[338566722,1726738248699,-1138.6,0.00018356,2]
[338566724,1726738248708,-987.63,0.00018356,2]
[338566726,1726738248718,-1005.75,0.00018356,2]
[338566728,1726738248728,-500.0,0.00018356,2]
[338566730,1726738248739,-500.0,0.00018356,2]
[338566732,1726738248749,-500.0,0.00018356,2]
[338566734,1726738248761,-500.0,0.00018356,2]
[338566736,1726738248771,-910.36,0.00018356,2]
[338566738,1726738248780,-500.0,0.00018356,2]
[338566740,1726738248790,-700.68,0.00018356,2]
[338566742,1726738248799,-533.89,0.00018356,2]
[338566744,1726738248809,-501.77,0.00018356,2]
[338566746,1726738248818,-1044.36,0.00018356,2]
[338566748,1726738248828,-1734.88,0.00018356,2]
[338566750,1726738248838,-800.09,0.00018356,2]
[338566752,1726738248848,-500.0,0.00018356,2]
[338566754,1726738248858,-500.0,0.00018356,2]
[338566756,1726738248868,-1081.47,0.00018356,2]
[338566758,1726738248877,-111.60192782,0.00018356,2]
[338566809,1726738249383,-151.0,0.00016986,2]
[338566811,1726738249393,-548.271387,0.0001726,2]
[338566813,1726738249405,-548.271387,0.00017534,2]
[338566815,1726738249415,-548.271387,0.00017808,2]
[338566817,1726738249424,-548.271387,0.00018081,2]
[338566819,1726738249434,-548.271387,0.00018355,2]
[338566820,1726738249448,-1338.29807218,0.00018356,2]
[338566823,1726738249458,-517.29,0.00018356,2]
[338566824,1726738249467,-500.0,0.00018356,2]
[338566826,1726738249477,-1244.75,0.00018356,2]
[338566828,1726738249486,-1027.3,0.00018356,2]
[338566830,1726738249496,-500.0,0.00018356,2]
[338566832,1726738249507,-151.0,0.00018356,2]
[338566834,1726738249516,-989.35,0.00018356,2]
[338566836,1726738249526,-934.54,0.00018356,2]
[338566838,1726738249535,-151.0,0.00018356,2]
[338566840,1726738249544,-1733.48,0.00018356,2]
[338566842,1726738249554,-500.0,0.00018356,2]
[338566844,1726738249564,-615.15,0.00018356,2]
[338566846,1726738249574,-1137.32,0.00018356,2]
[338566848,1726738249584,-151.0,0.00018356,2]
[338566850,1726738249593,-623.12,0.00018356,2]
[338566852,1726738249603,-500.0,0.00018356,2]
[338566854,1726738249613,-500.0,0.00018356,2]
[338566856,1726738249623,-500.0,0.00018356,2]
[338566858,1726738249634,-500.0,0.00018356,2]
[338566860,1726738249643,-1046.13,0.00018356,2]
[338566862,1726738249653,-2574.66,0.00018356,2]
[338566864,1726738249663,-500.0,0.00018356,2]
[338566866,1726738249672,-591.85,0.00018356,2]
[338566868,1726738249682,-184.202906,0.00018356,2]
[338566870,1726738249694,-184.202906,0.00018356,2]
[338566872,1726738249703,-197.778075,0.00018356,2]
[338566874,1726738249713,-197.778075,0.00018356,2]
[338566876,1726738249723,-4451.95,0.00018356,2]
[338566878,1726738249732,-869.76,0.00018356,2]
[338566880,1726738249742,-939.1,0.00018356,2]
[338566882,1726738249752,-500.0,0.00018356,2]
[338566884,1726738249762,-150.112233,0.000184,2]
[338566886,1726738249772,-3697.48719473,0.00018629,5]
[338566888,1726738249782,-23824.00517687,0.00018629,2]
[338566897,1726738249861,-54473.33482313,0.00018629,2]
[338566899,1726738249870,-9916.88,0.00018629,2]
[338566901,1726738249880,-1572.38,0.00018629,2]
[338566902,1726738249890,-963.67,0.00018629,2]
[338566903,1726738249900,-1295.73,0.00018629,2]
[338566904,1726738249909,-1165.61,0.00018629,2]
[338566905,1726738249919,-1112.29,0.00018629,2]
[338566906,1726738249929,-1479.529653,0.00018629,2]
[338566907,1726738249938,-1479.529653,0.00018629,2]
[338566908,1726738249947,-1725.121576,0.00018629,2]
[338566909,1726738249957,-1004.85,0.00018629,2]
[338566910,1726738249967,-1725.121576,0.00018629,2]
[338566911,1726738249977,-840.39483,0.00018629,2]
[338566912,1726738249987,-1028.619874,0.00018629,2]
[338566913,1726738249996,-840.39483,0.00018629,2]
[338566914,1726738250006,-1028.619874,0.00018629,2]
[338566915,1726738250016,-953.59,0.00018629,2]
[338566916,1726738250025,-345.075833,0.00018629,2]
[338566917,1726738250035,-555.96,0.00018629,2]
[338566918,1726738250045,-345.075833,0.00018629,2]
[338566919,1726738250054,-175.514511,0.00018629,2]
[338566920,1726738250063,-500.0,0.00018629,2]
[338566922,1726738250074,-175.514511,0.00018629,2]
[338566923,1726738250083,-500.0,0.00018629,2]
[338566924,1726738250092,-271.51439496,0.00018629,2]
[338566925,1726738250102,-482.68959,0.00018629,2]
[338566926,1726738250111,-482.68959,0.00018629,2]
[338566927,1726738250121,-269.980605,0.00018629,2]
[338566928,1726738250131,-269.980605,0.00018629,2]
[338566929,1726738250140,-548.271387,0.00018629,2]
[338566930,1726738250150,-500.0,0.0001863,2]
[338566931,1726738250160,-1051.26,0.0001863,2]
[338566932,1726738250170,-658.79,0.0001863,2]
[338566934,1726738250180,-500.0,0.0001863,2]
[338566935,1726738250190,-585.17,0.0001863,2]
[338566936,1726738250200,-500.0,0.0001863,2]
[338566937,1726738250210,-628.16,0.0001863,2]
[338566938,1726738250219,-3188.23,0.0001863,2]
[338566939,1726738250229,-500.0,0.0001863,2]
[338566940,1726738250240,-1138.6,0.0001863,2]
[338566941,1726738250250,-987.63,0.0001863,2]
[338566942,1726738250260,-1005.75,0.0001863,2]
[338566943,1726738250270,-500.0,0.0001863,2]
[338566944,1726738250280,-500.0,0.0001863,2]
[338566945,1726738250289,-500.0,0.0001863,2]
[338566946,1726738250299,-487.93919768,0.0001863,2]
[338566947,1726738250309,-910.36,0.0001863,2]
[338566948,1726738250318,-500.0,0.0001863,2]
[338566949,1726738250328,-700.68,0.0001863,2]
[338566950,1726738250338,-533.89,0.0001863,2]
[338566951,1726738250348,-501.77,0.0001863,2]
[338566952,1726738250357,-1044.36,0.0001863,2]
[338566953,1726738250367,-1734.88,0.0001863,2]
[338566954,1726738250376,-800.09,0.0001863,2]
[338566955,1726738250386,-500.0,0.0001863,2]
[338566956,1726738250395,-500.0,0.0001863,2]
[338566957,1726738250408,-1081.47,0.0001863,2]
[338566958,1726738250418,-1449.9,0.0001863,2]
[338566959,1726738250427,-517.29,0.0001863,2]
[338566960,1726738250438,-500.0,0.0001863,2]
[338566961,1726738250449,-1244.75,0.0001863,2]
[338566962,1726738250459,-1027.3,0.0001863,2]
[338566963,1726738250469,-500.0,0.0001863,2]
[338566964,1726738250480,-275.975488,0.0001863,2]
[338566965,1726738250490,-989.35,0.0001863,2]
[338566966,1726738250499,-934.54,0.0001863,2]
[338566967,1726738250509,-1733.48,0.0001863,2]
[338566968,1726738250519,-151.0,0.0001863,2]
[338566969,1726738250631,-500.0,0.0001863,2]
[338566970,1726738250641,-1137.32,0.0001863,2]
[338566971,1726738250651,-289.2263494,0.0001863,2]
[338566983,1726739131392,6277.6850079,0.00013872,2]
[338566984,1726739142189,-176.52228,0.00014258,2]
[338566985,1726739142212,-176.52228,0.00014269,2]
[338566986,1726739142235,-176.52228,0.00014281,2]
[338566987,1726739142258,-176.52228,0.00014293,2]
[338566988,1726739142280,-176.52228,0.00014305,2]
[338566989,1726739142302,-176.52228,0.00014317,2]
[338566990,1726739142328,-176.52228,0.00014329,2]
[338566991,1726739142350,-441.88302,0.00014348,2]
[338566992,1726739142373,-503.77611,0.00014375,2]
[338566993,1726739142395,-168.303092,0.00014734,2]
[338566994,1726739142417,-168.303092,0.00014887,2]
[338566995,1726739142440,-168.303092,0.00015041,2]
[338566996,1726739142461,-159.3612163,0.00015138,2]
[338566997,1726739142482,-168.303092,0.00015194,2]
[338566998,1726739142504,-168.303092,0.00015348,2]
[338566999,1726739142684,-168.303092,0.00015501,2]
[338567000,1726739142708,-300.0,0.00015569,2]
[338567001,1726739142729,-300.0,0.00015569,2]
[338567002,1726739142753,-16308.74382748,0.0001557,2]
[338567003,1726739193625,-8287.38846788,0.0001557,2]
[338567004,1726739228139,-300.0,0.00015391,2]
[338567005,1726739228162,-300.0,0.00015391,2]
[338567006,1726739228185,-24900.0,0.00015392,2]
[338567007,1726739228206,-534.5517096,0.00015694,2]
[338567008,1726739228228,-1290.87659076,0.00016338,2]
[338567009,1726739228249,-280.42554332,0.00016427,2]
[338567010,1726739228271,-500.0,0.00016427,2]
[338567011,1726739228294,-500.0,0.00016427,2]
[338567012,1726739228317,-239.32982984,0.00016427,2]
[338567013,1726739228340,-500.0,0.00016427,2]
[338567014,1726739228363,-500.0,0.00016427,2]
[338567015,1726739228387,-501.01766861,0.00016427,2]
[338567016,1726739228410,-500.0,0.00016427,2]
[338567017,1726739228431,-326.02050369,0.00016427,2]
[338567018,1726739228454,-500.0,0.00016427,2]
[338567019,1726739228476,-500.0,0.00016427,2]
[338567020,1726739228497,-179.45455072,0.00016427,2]
[338567021,1726739228522,-106.12626137,0.00016427,2]
[338567022,1726739229352,-393.87373863,0.00016427,2]
[338567023,1726739229375,-161.58307443,0.00016427,2]
[338567024,1726739229396,-500.0,0.00016427,2]
[338567025,1726739229418,-500.0,0.00016427,2]
[338567026,1726739229440,-500.0,0.00016427,2]
[338567027,1726739229460,-432.00992507,0.00016427,2]
[338567028,1726739229481,-500.0,0.00016427,2]
[338567029,1726739229501,-500.0,0.00016427,2]
[338567030,1726739229522,-500.0,0.00016427,2]
[338567031,1726739229542,-500.0,0.00016427,2]
[338567032,1726739229563,-500.0,0.00016427,2]
[338567033,1726739229585,-500.0,0.00016427,2]
[338567034,1726739229605,-500.0,0.00016427,2]
[338567035,1726739229628,-500.0,0.00016427,2]
[338567036,1726739229648,-500.0,0.00016427,2]
[338567037,1726739229669,-500.0,0.00016427,2]
[338567038,1726739229690,-500.0,0.00016427,2]
[338567039,1726739229711,-500.0,0.00016427,2]
[338567040,1726739229731,-511.26158455,0.00016427,2]
[338567041,1726739229752,-500.0,0.00016427,2]
[338567042,1726739229773,-500.0,0.00016427,2]
[338567043,1726739229796,-500.0,0.00016427,2]
[338567044,1726739229817,-500.0,0.00016427,2]
[338567045,1726739229839,-500.0,0.00016427,2]
[338567046,1726739229863,-500.0,0.00016427,2]
[338567047,1726739229885,-500.0,0.00016427,2]
[338567048,1726739229908,-641.47476981,0.00016427,2]
[338567049,1726739229930,-641.47476981,0.00016427,2]
[338567050,1726739229951,-641.47476981,0.00016427,2]
[338567051,1726739229973,-641.47476981,0.00016427,2]
[338567052,1726739229997,-641.47476981,0.00016427,2]
[338567053,1726739230022,-641.47476981,0.00016427,2]
[338567054,1726739230044,-641.47476981,0.00016427,2]
[338567055,1726739230067,-692.79275141,0.00016427,2]
[338567056,1726739230091,-692.79275141,0.00016427,2]
[338567057,1726739230116,-692.79275141,0.00016427,2]
[338567058,1726739230138,-692.79275141,0.00016427,2]
[338567059,1726739230159,-692.79275141,0.00016427,2]
[338567060,1726739230180,-166.88961466,0.00016428,2]
[338567061,1726739230202,-30964.15292176,0.00016428,2]
[338567062,1726739355195,-3422.90874955,0.00016327,2]
[338567063,1726739355218,-1161.78893163,0.00016338,2]
[338567064,1726739355239,-300.0,0.00016417,2]
[338567065,1726739355261,-300.0,0.00016417,2]
[338567066,1726739355285,-222.33529651,0.00016417,2]
[338567067,1726739355309,-47381.60531043,0.00016418,2]
[338567068,1726739356217,-20254.8885966,0.00016418,2]
[338567069,1726739372280,-71968.03319191,0.00016418,2]
[338567404,1726739438632,-300.0,0.00016417,2]
[338567405,1726739438643,-300.0,0.00016417,2]
[338567406,1726739438654,-500.0,0.00016417,2]
[338567407,1726739438665,-500.0,0.00016417,2]
[338567408,1726739438676,-500.0,0.00016417,2]
[338567409,1726739438687,-151.02652064,0.00016417,2]
[338567410,1726739438701,-348.97347936,0.00016417,2]
[338567411,1726739438712,-500.0,0.00016417,2]
[338567412,1726739438722,-500.0,0.00016417,2]
[338567413,1726739438733,-500.0,0.00016417,2]
[338567414,1726739438743,-500.0,0.00016417,2]
[338567415,1726739438755,-500.0,0.00016417,2]
[338567416,1726739438765,-500.0,0.00016417,2]
[338567417,1726739438775,-500.0,0.00016417,2]
[338567418,1726739438785,-500.0,0.00016417,2]
[338567419,1726739438795,-500.0,0.00016417,2]
[338567420,1726739438805,-500.0,0.00016417,2]
[338567421,1726739438815,-500.0,0.00016417,2]
[338567422,1726739438825,-500.0,0.00016417,2]
[338567423,1726739438835,-500.0,0.00016417,2]
[338567424,1726739438846,-304.84926655,0.00016417,2]
[338567425,1726739438859,-500.0,0.00016417,2]
[338567426,1726739438870,-500.0,0.00016417,2]
[338567427,1726739438880,-500.0,0.00016417,2]
[338567428,1726739438890,-391.96065115,0.00016417,2]
[338567429,1726739438902,-500.0,0.00016417,2]
[338567430,1726739438912,-500.0,0.00016417,2]
[338567431,1726739438922,-500.0,0.00016417,2]
[338567432,1726739438933,-500.0,0.00016417,2]
[338567433,1726739438944,-500.0,0.00016417,2]
[338567434,1726739438955,-500.0,0.00016417,2]
[338567435,1726739438965,-500.0,0.00016417,2]
[338567436,1726739438975,-500.0,0.00016417,2]
[338567437,1726739438986,-500.0,0.00016417,2]
[338567438,1726739438998,-500.0,0.00016417,2]
[338567439,1726739439008,-500.0,0.00016417,2]
[338567440,1726739439018,-500.0,0.00016417,2]
[338567441,1726739439029,-500.0,0.00016417,2]
[338567442,1726739439039,-265088.82947906,0.00016418,2]
[338567443,1726739439049,-67226.0144709,0.00016418,2]
[338567444,1726739439059,-16806.5036177,0.00016428,2]
[338567445,1726739439070,-228.21435259,0.00016437,2]
[338567446,1726739439080,-500.0,0.00016437,2]
[338567447,1726739439090,-500.0,0.00016437,2]
[338567448,1726739439100,-500.0,0.00016437,2]
[338567449,1726739439110,-152.40694754,0.00016437,2]
[338567450,1726739439120,-500.0,0.00016437,2]
[338567451,1726739439131,-500.0,0.00016437,2]
[338567452,1726739439141,-500.0,0.00016437,2]
[338567453,1726739439152,-500.0,0.00016437,2]
[338567454,1726739439162,-500.0,0.00016437,2]
[338567455,1726739439173,-500.0,0.00016437,2]
[338567456,1726739439183,-363.10815211,0.00016437,2]
[338567457,1726739439194,-500.0,0.00016437,2]
[338567458,1726739439206,-500.0,0.00016437,2]
[338567459,1726739439217,-500.0,0.00016437,2]
[338567460,1726739439227,-500.0,0.00016437,2]
[338567461,1726739439238,-257.88310919,0.00016437,2]
[338567462,1726739439248,-500.0,0.00016437,2]
[338567463,1726739439258,-500.0,0.00016437,2]
[338567464,1726739439270,-500.0,0.00016437,2]
[338567465,1726739439281,-500.0,0.00016437,2]
[338567466,1726739439292,-500.0,0.00016437,2]
[338567467,1726739439302,-500.0,0.00016437,2]
[338567468,1726739439312,-500.0,0.00016437,2]
[338567469,1726739439323,-500.0,0.00016437,2]
[338567470,1726739439334,-500.0,0.00016437,2]
[338567471,1726739439344,-500.0,0.00016437,2]
[338567472,1726739439355,-500.0,0.00016437,2]
[338567473,1726739439366,-500.0,0.00016437,2]
[338567474,1726739439376,-500.0,0.00016437,2]
[338567475,1726739439388,-304.11160779,0.00016437,2]
[338567476,1726739439398,-500.0,0.00016437,2]
[338567477,1726739439409,-500.0,0.00016437,2]
[338567478,1726739439419,-500.0,0.00016437,2]
[338567479,1726739439430,-500.0,0.00016437,2]
[338567480,1726739439440,-400.0,0.00016437,2]
[338567481,1726739439451,-500.0,0.00016437,2]
[338567482,1726739439462,-166.88961466,0.00016438,2]
[338567483,1726739439472,-500.0,0.00016438,2]
[338567484,1726739439482,-541.83,0.00016438,2]
[338567485,1726739439492,-500.0,0.00016438,2]
[338567486,1726739439504,-500.0,0.00016438,2]
[338567487,1726739439515,-500.0,0.00016438,2]
[338567488,1726739439526,-500.0,0.00016438,2]
[338567489,1726739439536,-500.0,0.00016438,2]
[338567490,1726739439547,-500.0,0.00016438,2]
[338567491,1726739439557,-1773.07,0.00016438,2]
[338567492,1726739439567,-500.0,0.00016438,2]
[338567493,1726739439578,-206.19624713,0.00016438,2]
[338567494,1726739439589,-1253.16,0.00016438,2]
[338567495,1726739439600,-500.0,0.00016438,2]
[338567496,1726739439609,-523.46,0.00016438,2]
[338567497,1726739439619,-1725.68,0.00016438,2]
[338567498,1726739439629,-500.0,0.00016438,2]
[338567499,1726739439638,-500.0,0.00016438,2]
[338567500,1726739439648,-500.0,0.00016438,2]
[338567501,1726739439658,-500.0,0.00016438,2]
[338567502,1726739439667,-514.55,0.00016438,2]
[338567503,1726739439676,-500.0,0.00016438,2]
[338567504,1726739439685,-500.0,0.00016438,2]
[338567505,1726739439695,-500.0,0.00016438,2]
[338567506,1726739439704,-505.75194683,0.00016438,2]
[338567507,1726739439714,-500.0,0.00016438,2]
[338567508,1726739439723,-500.0,0.00016438,2]
[338567509,1726739439733,-500.0,0.00016438,2]
[338567512,1726739440171,-500.0,0.00016438,2]
[338567513,1726739440189,-500.0,0.00016438,2]
[338567514,1726739440209,-1917.23,0.00016438,2]
[338567515,1726739440227,-500.0,0.00016438,2]
[338567516,1726739440238,-1813.82,0.00016438,2]
[338567518,1726739440249,-500.0,0.00016438,2]
[338567519,1726739440258,-500.0,0.00016438,2]
[338567521,1726739440267,-500.0,0.00016438,2]
[338567523,1726739440277,-500.0,0.00016438,2]
[338567525,1726739440286,-500.0,0.00016438,2]
[338567526,1726739440295,-522.24562387,0.00016438,2]
[338567527,1726739440305,-758.63,0.00016438,2]
[338567528,1726739440315,-876.05,0.00016438,2]
[338567530,1726739440324,-870.3,0.00016438,2]
[338567531,1726739440334,-561.95637592,0.00016438,2]
[338567532,1726739440343,-500.0,0.00016438,2]
[338567533,1726739440352,-500.0,0.00016438,2]
[338567534,1726739440363,-497.00598802,0.00016438,2]
[338567535,1726739440373,-1014.89,0.00016438,2]
[338567536,1726739440383,-500.0,0.00016438,2]
[338567537,1726739440392,-500.0,0.00016438,2]
[338567538,1726739440402,-500.0,0.00016438,2]
[338567539,1726739440411,-508.5,0.00016438,2]
[338567540,1726739440421,-351.46945434,0.00016438,2]
[338567541,1726739440430,-995.15,0.00016438,2]
[338567542,1726739440439,-972.67,0.00016438,2]
[338567543,1726739440450,-500.0,0.00016438,2]
[338567544,1726739440459,-1109.51,0.00016438,2]
[338567545,1726739440469,-500.0,0.00016438,2]
[338567546,1726739440478,-500.0,0.00016438,2]
[338567547,1726739440488,-500.0,0.00016438,2]
[338567548,1726739440497,-946.29,0.00016438,2]
[338567549,1726739440507,-500.0,0.00016438,2]
[338567550,1726739440517,-1004.81,0.00016438,2]
[338567551,1726739440526,-500.0,0.00016438,2]
[338567552,1726739440535,-766.47,0.00016438,2]
[338567553,1726739440545,-500.0,0.00016438,2]
[338567554,1726739440555,-564.43,0.00016438,2]
[338567555,1726739440564,-926.76,0.00016438,2]
[338567556,1726739440573,-774.6,0.00016438,2]
[338567557,1726739440582,-500.0,0.00016438,2]
[338567558,1726739440592,-500.0,0.00016438,2]
[338567559,1726739440600,-500.0,0.00016438,2]
[338567560,1726739440610,-500.0,0.00016438,2]
[338567561,1726739440620,-500.0,0.00016438,2]
[338567562,1726739440630,-549.51,0.00016438,2]
[338567563,1726739440639,-500.76,0.00016438,2]
[338567564,1726739440648,-715.82,0.00016438,2]
[338567565,1726739440657,-500.0,0.00016438,2]
[338567566,1726739440666,-500.0,0.00016438,2]
[338567567,1726739440675,-500.0,0.00016438,2]
[338567568,1726739440684,-500.0,0.00016438,2]
[338567569,1726739440694,-500.0,0.00016438,2]
[338567570,1726739440703,-500.0,0.00016438,2]
[338567571,1726739440712,-500.44329615,0.00016438,2]